[Event "*** Titled Tuesday Blitz"]
[Site "Chess.com"]
[Date "2019.10.01"]
[Round "3"]
[White "gena217"]
[Black "GelmanAlexander"]
[Result "1-0"]
[WhiteElo "2900"]
[BlackElo "2498"]
[TimeControl "180+2"]
[EndTime "13:38:59 PDT"]
[Termination "gena217 won by resignation"]

1. e4 {[%clk 0:03:01.9]} 1... d5 {[%clk 0:03:00.5]} 2. exd5 {[%clk 0:03:03.8]}
2... Qxd5 {[%clk 0:03:00.9]} 3. Nc3 {[%clk 0:03:04.2]} 3... Qa5 {[%clk
0:03:01.7]} 4. d4 {[%clk 0:03:05.1]} 4... Nf6 {[%clk 0:03:02.8]} 5. Nf3 {[%clk
0:03:05.9]} 5... Nc6 {[%clk 0:03:04]} 6. Bb5 {[%clk 0:03:01.8]} 6... Nd5 {[%clk
0:02:58.6]} 7. Bd2 {[%clk 0:02:46.8]} 7... Nxc3 {[%clk 0:02:58.2]} 8. Bxc6+
{[%clk 0:02:47.6]} 8... bxc6 {[%clk 0:03:00.1]} 9. Bxc3 {[%clk 0:02:47.8]} 9...
Qd5 {[%clk 0:02:59.6]} 10. O-O {[%clk 0:02:48.2]} 10... Bg4 {[%clk 0:02:58.5]}
11. Re1 {[%clk 0:02:46.4]} 11... e6 {[%clk 0:02:58.2]} 12. Re3 {[%clk
0:02:43.3]} 12... Bd6 {[%clk 0:02:42.5]} 13. Qd3 {[%clk 0:02:27.7]} 13... O-O
{[%clk 0:02:18.8]} 14. Ne5 {[%clk 0:02:24]} 14... Bf5 {[%clk 0:02:19.8]} 15. Qe2
{[%clk 0:02:21.2]} 15... Rad8 {[%clk 0:02:00.2]} 16. h3 {[%clk 0:02:00.5]} 16...
h6 {[%clk 0:02:00.7]} 17. b3 {[%clk 0:01:59]} 17... f6 {[%clk 0:01:18.2]} 18.
Nd3 {[%clk 0:01:50.8]} 18... Rfe8 {[%clk 0:01:15.5]} 19. Re1 {[%clk 0:01:49.9]}
19... Re7 {[%clk 0:00:58.4]} 20. Bb2 {[%clk 0:01:45.6]} 20... Rde8 {[%clk
0:00:54.2]} 21. c4 {[%clk 0:01:44.3]} 21... Bxd3 {[%clk 0:00:54.6]} 22. Qxd3
{[%clk 0:01:42.3]} 22... Qg5 {[%clk 0:00:55.7]} 23. Bc3 {[%clk 0:01:38.8]} 23...
c5 {[%clk 0:00:54.1]} 24. Qe2 {[%clk 0:01:29.2]} 24... cxd4 {[%clk 0:00:53.4]}
25. Bxd4 {[%clk 0:01:30.7]} 25... e5 {[%clk 0:00:54.7]} 26. Bc3 {[%clk
0:01:24.2]} 26... Bc5 {[%clk 0:00:51.1]} 27. Rd3 {[%clk 0:01:11.5]} 27... e4
{[%clk 0:00:50.2]} 28. Rd5 {[%clk 0:01:01.7]} 28... e3 {[%clk 0:00:47.5]} 29. f3
{[%clk 0:00:58.6]} 29... Re5 {[%clk 0:00:37]} 30. Bxe5 {[%clk 0:00:58.5]} 30...
Rxe5 {[%clk 0:00:38.9]} 31. Rxc5 {[%clk 0:00:55.8]} 31... Rxc5 {[%clk
0:00:36.5]} 32. Qxe3 {[%clk 0:00:57.3]} 32... Qf5 {[%clk 0:00:22.4]} 33. g4
{[%clk 0:00:50.1]} 33... Qe5 {[%clk 0:00:18.4]} 34. Qxe5 {[%clk 0:00:50.4]}
34... fxe5 {[%clk 0:00:20.3]} 35. Kf2 {[%clk 0:00:50.7]} 35... Kf7 {[%clk
0:00:21.1]} 36. Ke3 {[%clk 0:00:47.3]} 36... Ke6 {[%clk 0:00:22.2]} 37. Rd1
{[%clk 0:00:46.2]} 37... Ra5 {[%clk 0:00:23.8]} 38. Rd2 {[%clk 0:00:45]} 38...
Ra6 {[%clk 0:00:24.7]} 39. Ke4 {[%clk 0:00:45.3]} 39... g6 {[%clk 0:00:22.4]}
40. h4 {[%clk 0:00:46.4]} 40... Ra5 {[%clk 0:00:21.4]} 41. a4 {[%clk 0:00:45.2]}
41... Ra6 {[%clk 0:00:22.7]} 42. Rd5 {[%clk 0:00:46.2]} 42... Kf6 {[%clk
0:00:21]} 43. Rxe5 {[%clk 0:00:46.7]} 43... Rd6 {[%clk 0:00:22.6]} 44. g5+
{[%clk 0:00:46.7]} 44... hxg5 {[%clk 0:00:23.6]} 45. hxg5+ {[%clk 0:00:48.6]}
45... Kf7 {[%clk 0:00:25.5]} 46. Rd5 {[%clk 0:00:48.3]} 46... Re6+ {[%clk
0:00:26.6]} 47. Kd4 {[%clk 0:00:49.8]} 47... Re1 {[%clk 0:00:25.2]} 48. Ra5
{[%clk 0:00:47.9]} 48... Rd1+ {[%clk 0:00:22.5]} 49. Kc3 {[%clk 0:00:48.8]}
49... Ke6 {[%clk 0:00:23.6]} 50. Rxa7 {[%clk 0:00:49.3]} 50... Rd7 {[%clk
0:00:23.8]} 51. Ra5 {[%clk 0:00:47.3]} 51... Rf7 {[%clk 0:00:21.9]} 52. Rc5
{[%clk 0:00:48]} 52... Rxf3+ {[%clk 0:00:23.3]} 53. Kb4 {[%clk 0:00:49.6]} 53...
Kd7 {[%clk 0:00:24.3]} 54. a5 {[%clk 0:00:49.7]} 54... c6 {[%clk 0:00:24.2]} 55.
a6 {[%clk 0:00:48.6]} 55... Kc7 {[%clk 0:00:25.2]} 56. a7 {[%clk 0:00:49.9]}
56... Kb7 {[%clk 0:00:26.4]} 57. Rxc6 {[%clk 0:00:50.2]} 57... Kxa7 {[%clk
0:00:19.9]} 58. Rxg6 {[%clk 0:00:50.8]} 58... Rf5 {[%clk 0:00:20.7]} 59. c5
{[%clk 0:00:51.2]} 59... Ka8 {[%clk 0:00:20.1]} 60. Kb5 {[%clk 0:00:52.3]} 60...
Rf3 {[%clk 0:00:21.4]} 61. b4 {[%clk 0:00:53.7]} 61... Rb3 {[%clk 0:00:22.3]}
62. c6 {[%clk 0:00:54.2]} 62... Rh3 {[%clk 0:00:24.2]} 63. Kb6 {[%clk
0:00:54.3]} 63... Rh8 {[%clk 0:00:25.8]} 64. b5 {[%clk 0:00:54.5]} 64... Rc8
{[%clk 0:00:26.6]} 65. Rf6 {[%clk 0:00:52.2]} 65... Rg8 {[%clk 0:00:27]} 66. g6
{[%clk 0:00:53.2]} 66... Rb8+ {[%clk 0:00:28.4]} 67. Kc5 {[%clk 0:00:54]} 67...
Rg8 {[%clk 0:00:30.3]} 68. b6 {[%clk 0:00:55]} 68... Re8 {[%clk 0:00:28.6]} 69.
g7 {[%clk 0:00:55.3]} 69... Rb8 {[%clk 0:00:28.6]} 70. Rf8 {[%clk 0:00:54.8]}
1-0

[Event "*** Titled Tuesday Blitz"]
[Site "Chess.com"]
[Date "2019.10.01"]
[Round "3"]
[White "biostatistician"]
[Black "NemtsevIgor"]
[Result "1-0"]
[WhiteElo "2588"]
[BlackElo "2311"]
[TimeControl "180+2"]
[EndTime "13:39:08 PDT"]
[Termination "biostatistician won by resignation"]

1. d4 {[%clk 0:03:01.8]} 1... c6 {[%clk 0:03:00.1]} 2. Nf3 {[%clk 0:03:03.7]}
2... h6 {[%clk 0:03:00.6]} 3. c4 {[%clk 0:03:05.6]} 3... d6 {[%clk 0:03:01.5]}
4. Nc3 {[%clk 0:03:07.5]} 4... g5 {[%clk 0:03:01.9]} 5. e4 {[%clk 0:03:09.4]}
5... Bg7 {[%clk 0:03:02.5]} 6. Be3 {[%clk 0:03:10.2]} 6... Nd7 {[%clk
0:03:01.5]} 7. h4 {[%clk 0:03:10.4]} 7... g4 {[%clk 0:03:02.3]} 8. Nd2 {[%clk
0:03:11.7]} 8... g3 {[%clk 0:03:03.2]} 9. fxg3 {[%clk 0:03:10]} 9... h5 {[%clk
0:03:03.9]} 10. Nf3 {[%clk 0:03:09.2]} 10... Nh6 {[%clk 0:02:57.6]} 11. Qd2
{[%clk 0:03:06.7]} 11... Ng4 {[%clk 0:02:58.6]} 12. Bg5 {[%clk 0:03:07.1]} 12...
Qb6 {[%clk 0:02:49.8]} 13. Be2 {[%clk 0:02:57.4]} 13... f6 {[%clk 0:02:49.4]}
14. Be3 {[%clk 0:02:47.3]} 14... Nxe3 {[%clk 0:02:41.4]} 15. Qxe3 {[%clk
0:02:49.2]} 15... Qxb2 {[%clk 0:02:42.3]} 16. O-O {[%clk 0:02:50.5]} 16... Qb6
{[%clk 0:02:41.3]} 17. Rab1 {[%clk 0:02:41.2]} 17... Qa5 {[%clk 0:02:42.1]} 18.
d5 {[%clk 0:02:32.6]} 18... Bh6 {[%clk 0:02:38]} 19. Qd4 {[%clk 0:02:23.3]}
19... Ne5 {[%clk 0:02:14.8]} 20. Nxe5 {[%clk 0:02:21.2]} 20... fxe5 {[%clk
0:02:15.9]} 21. Bxh5+ {[%clk 0:02:22.2]} 21... Kd8 {[%clk 0:02:16]} 22. Qd3
{[%clk 0:02:21.8]} 22... Qc5+ {[%clk 0:01:15.1]} 23. Kh2 {[%clk 0:02:21]} 23...
Be3 {[%clk 0:01:15.9]} 24. Bf7 {[%clk 0:02:00.5]} 24... Bd4 {[%clk 0:01:06.7]}
25. Ne2 {[%clk 0:01:55.6]} 25... Be3 {[%clk 0:00:53.9]} 26. Rf3 {[%clk
0:01:52.2]} 26... Bg5 {[%clk 0:00:52]} 27. Be6 {[%clk 0:01:46]} 27... Bxe6
{[%clk 0:00:46.5]} 28. dxe6 {[%clk 0:01:47.9]} 28... Kc7 {[%clk 0:00:45.6]} 29.
Ng1 {[%clk 0:01:16.7]} 29... Rag8 {[%clk 0:00:43.5]} 30. Nh3 {[%clk 0:01:16.6]}
30... Bf6 {[%clk 0:00:40.8]} 31. Qe2 {[%clk 0:01:09]} 31... b6 {[%clk
0:00:31.1]} 32. Rf5 {[%clk 0:01:09]} 32... Kb7 {[%clk 0:00:30.8]} 33. Rbf1
{[%clk 0:01:09.8]} 33... Qd4 {[%clk 0:00:30.6]} 34. R1f3 {[%clk 0:01:08.1]}
34... Qa1 {[%clk 0:00:30.5]} 35. Ra3 {[%clk 0:01:02.3]} 35... Qd4 {[%clk
0:00:29.9]} 36. c5 {[%clk 0:01:01.7]} 36... b5 {[%clk 0:00:30.5]} 37. cxd6
{[%clk 0:01:02.3]} 37... Qxd6 {[%clk 0:00:31.2]} 38. Rd3 {[%clk 0:01:02.8]}
38... Qc5 {[%clk 0:00:32.1]} 39. Rd7+ {[%clk 0:01:04.1]} 39... Kb6 {[%clk
0:00:33.3]} 40. Qf3 {[%clk 0:00:52]} 40... Qc4 {[%clk 0:00:26]} 41. Qf2+ {[%clk
0:00:44.1]} 41... c5 {[%clk 0:00:22.2]} 42. Rxf6 {[%clk 0:00:42.4]} 42... exf6
{[%clk 0:00:22.4]} 43. Qxf6 {[%clk 0:00:43.7]} 43... Qxe4 {[%clk 0:00:21.5]} 44.
e7+ {[%clk 0:00:44.5]} 44... Ka5 {[%clk 0:00:19.3]} 45. Rd8 {[%clk 0:00:40.4]}
45... Qe3 {[%clk 0:00:18.9]} 46. Rxg8 {[%clk 0:00:31.2]} 46... Rxg8 {[%clk
0:00:19.5]} 47. Ng5 {[%clk 0:00:32.8]} 47... Re8 {[%clk 0:00:18.4]} 48. Qf7
{[%clk 0:00:32.2]} 48... Rxe7 {[%clk 0:00:17.5]} 49. Qxe7 {[%clk 0:00:34.1]}
49... c4 {[%clk 0:00:18.8]} 50. Nf3 {[%clk 0:00:28.1]} 50... c3 {[%clk
0:00:19.7]} 51. Qc7+ {[%clk 0:00:29.3]} 51... Kb4 {[%clk 0:00:20.1]} 52. Qxe5
{[%clk 0:00:30.1]} 52... Qxe5 {[%clk 0:00:20.8]} 53. Nxe5 {[%clk 0:00:32]} 53...
Kc5 {[%clk 0:00:21.3]} 54. Nd3+ {[%clk 0:00:27]} 54... Kd4 {[%clk 0:00:22.7]}
55. Nc1 {[%clk 0:00:28.6]} 55... Ke3 {[%clk 0:00:23.3]} 56. h5 {[%clk
0:00:30.2]} 56... Kd2 {[%clk 0:00:24.5]} 57. Nb3+ {[%clk 0:00:30.7]} 57... Kc2
{[%clk 0:00:24.3]} 58. h6 {[%clk 0:00:31.3]} 58... Kb2 {[%clk 0:00:26.2]} 59. h7
{[%clk 0:00:32.7]} 59... Kxa2 {[%clk 0:00:27.4]} 60. Nc1+ {[%clk 0:00:32.5]}
60... Kb1 {[%clk 0:00:28.4]} 61. h8=Q {[%clk 0:00:33.9]} 61... b4 {[%clk
0:00:29.8]} 62. Nd3 {[%clk 0:00:33.7]} 62... a5 {[%clk 0:00:29.5]} 63. Qd4
{[%clk 0:00:33.1]} 63... Kc2 {[%clk 0:00:30.3]} 64. Nxb4+ {[%clk 0:00:33.8]}
64... axb4 {[%clk 0:00:31]} 65. Qxb4 {[%clk 0:00:35.7]} 65... Kd2 {[%clk
0:00:32.3]} 66. g4 {[%clk 0:00:37]} 1-0

[Event "*** Titled Tuesday Blitz"]
[Site "Chess.com"]
[Date "2019.10.01"]
[Round "3"]
[White "MarcoRiehle"]
[Black "Saitama_Hero"]
[Result "1/2-1/2"]
[WhiteElo "2587"]
[BlackElo "2340"]
[TimeControl "180+2"]
[EndTime "13:39:10 PDT"]
[Termination "Game drawn - insufficient material"]

1. e4 {[%clk 0:03:01.9]} 1... e6 {[%clk 0:03:01]} 2. c4 {[%clk 0:03:01.6]} 2...
d5 {[%clk 0:03:01.6]} 3. cxd5 {[%clk 0:03:03.5]} 3... exd5 {[%clk 0:03:02.7]} 4.
Qb3 {[%clk 0:03:04.1]} 4... dxe4 {[%clk 0:02:59.3]} 5. Bc4 {[%clk 0:03:03.6]}
5... Qd7 {[%clk 0:02:49.8]} 6. Nh3 {[%clk 0:03:03.2]} 6... Nc6 {[%clk 0:02:48]}
7. Ng5 {[%clk 0:03:03.2]} 7... Nh6 {[%clk 0:02:47.5]} 8. O-O {[%clk 0:02:50]}
8... Na5 {[%clk 0:02:43.2]} 9. Qc3 {[%clk 0:02:50.7]} 9... Nxc4 {[%clk
0:02:43.4]} 10. Qxc4 {[%clk 0:02:52.6]} 10... Be7 {[%clk 0:02:34.9]} 11. Qxe4
{[%clk 0:02:52.4]} 11... Qf5 {[%clk 0:02:29.9]} 12. d4 {[%clk 0:02:34.1]} 12...
Qxe4 {[%clk 0:02:25.7]} 13. Nxe4 {[%clk 0:02:36]} 13... Nf5 {[%clk 0:02:26.7]}
14. d5 {[%clk 0:02:28.3]} 14... O-O {[%clk 0:02:22.5]} 15. Bf4 {[%clk
0:02:27.6]} 15... c6 {[%clk 0:01:33.5]} 16. d6 {[%clk 0:02:20.1]} 16... Bd8
{[%clk 0:01:33]} 17. Rd1 {[%clk 0:02:10.6]} 17... Be6 {[%clk 0:01:30.6]} 18. Nc5
{[%clk 0:02:09.1]} 18... Bb6 {[%clk 0:01:26.6]} 19. Nxe6 {[%clk 0:01:51.3]}
19... fxe6 {[%clk 0:01:28.5]} 20. Nc3 {[%clk 0:01:51.9]} 20... Rad8 {[%clk
0:01:25.5]} 21. Ne4 {[%clk 0:01:40.5]} 21... Nd4 {[%clk 0:01:22.7]} 22. Be3
{[%clk 0:01:33.7]} 22... Ne2+ {[%clk 0:01:22]} 23. Kh1 {[%clk 0:01:28.6]} 23...
Rf5 {[%clk 0:01:11.4]} 24. Bxb6 {[%clk 0:01:14.8]} 24... axb6 {[%clk 0:01:13.3]}
25. g3 {[%clk 0:00:59.7]} 25... Re5 {[%clk 0:00:52.8]} 26. f3 {[%clk 0:00:58.1]}
26... Rd5 {[%clk 0:00:52.9]} 27. Kg2 {[%clk 0:00:56.5]} 27... Nd4 {[%clk
0:00:50.7]} 28. Rd3 {[%clk 0:00:48.5]} 28... Nf5 {[%clk 0:00:46.9]} 29. Rb3
{[%clk 0:00:40]} 29... b5 {[%clk 0:00:44.5]} 30. a4 {[%clk 0:00:37.9]} 30...
Nxd6 {[%clk 0:00:38.4]} 31. Nxd6 {[%clk 0:00:39.8]} 31... R8xd6 {[%clk
0:00:38.3]} 32. axb5 {[%clk 0:00:40.2]} 32... Rxb5 {[%clk 0:00:40.2]} 33. Rxb5
{[%clk 0:00:35.9]} 33... cxb5 {[%clk 0:00:42.1]} 34. Ra7 {[%clk 0:00:35.1]}
34... Rd2+ {[%clk 0:00:37.8]} 35. Kh3 {[%clk 0:00:36.1]} 35... Rxb2 {[%clk
0:00:39.7]} 36. Rxb7 {[%clk 0:00:37.5]} 36... h6 {[%clk 0:00:39.5]} 37. Kg4
{[%clk 0:00:37.8]} 37... Rxh2 {[%clk 0:00:29.6]} 38. Rxb5 {[%clk 0:00:37.6]}
38... Re2 {[%clk 0:00:30.5]} 39. f4 {[%clk 0:00:36]} 39... Kf7 {[%clk
0:00:31.2]} 40. Rb6 {[%clk 0:00:35]} 40... Kf6 {[%clk 0:00:30.2]} 41. Kf3 {[%clk
0:00:36.1]} 41... Ra2 {[%clk 0:00:29.8]} 42. g4 {[%clk 0:00:36.7]} 42... Ra3+
{[%clk 0:00:30.7]} 43. Kg2 {[%clk 0:00:36.7]} 43... Kf7 {[%clk 0:00:28.4]} 44.
Rb7+ {[%clk 0:00:33.8]} 44... Kf6 {[%clk 0:00:28.6]} 45. Rb6 {[%clk 0:00:34.8]}
45... g6 {[%clk 0:00:30.1]} 46. Kf2 {[%clk 0:00:31.6]} 46... Rh3 {[%clk
0:00:29.7]} 47. Rb8 {[%clk 0:00:29.5]} 47... Ra3 {[%clk 0:00:29]} 48. Rf8+
{[%clk 0:00:29.7]} 48... Ke7 {[%clk 0:00:29.1]} 49. Rh8 {[%clk 0:00:29.8]} 49...
Ra4 {[%clk 0:00:26.2]} 50. Kg3 {[%clk 0:00:26.6]} 50... Ra3+ {[%clk 0:00:24]}
51. Kh4 {[%clk 0:00:25.7]} 51... Ra1 {[%clk 0:00:16.2]} 52. Rxh6 {[%clk
0:00:21.2]} 52... Rh1+ {[%clk 0:00:16.7]} 53. Kg5 {[%clk 0:00:21.7]} 53... Rxh6
{[%clk 0:00:18.1]} 54. Kxh6 {[%clk 0:00:23.6]} 54... Kf6 {[%clk 0:00:19.3]} 55.
g5+ {[%clk 0:00:20.3]} 55... Kf5 {[%clk 0:00:17.9]} 56. Kg7 {[%clk 0:00:21.1]}
56... Kxf4 {[%clk 0:00:17.8]} 57. Kxg6 {[%clk 0:00:21.7]} 57... e5 {[%clk
0:00:19.4]} 58. Kf6 {[%clk 0:00:22.9]} 58... e4 {[%clk 0:00:21.3]} 59. g6 {[%clk
0:00:24.5]} 59... e3 {[%clk 0:00:22.8]} 60. g7 {[%clk 0:00:26.4]} 60... e2
{[%clk 0:00:24.2]} 61. g8=Q {[%clk 0:00:27.8]} 61... e1=Q {[%clk 0:00:25.7]} 62.
Qg5+ {[%clk 0:00:28.6]} 62... Kf3 {[%clk 0:00:26.7]} 63. Qf5+ {[%clk 0:00:29.4]}
63... Ke2 {[%clk 0:00:27.8]} 64. Qe5+ {[%clk 0:00:30.3]} 64... Kd1 {[%clk
0:00:28.6]} 65. Qxe1+ {[%clk 0:00:31.3]} 65... Kxe1 {[%clk 0:00:29.5]} 1/2-1/2

[Event "*** Titled Tuesday Blitz"]
[Site "Chess.com"]
[Date "2019.10.01"]
[Round "3"]
[White "JakubPulpan"]
[Black "Bigfish1995"]
[Result "1/2-1/2"]
[WhiteElo "2739"]
[BlackElo "2986"]
[TimeControl "180+2"]
[EndTime "13:39:19 PDT"]
[Termination "Game drawn by repetition"]

1. Nf3 {[%clk 0:03:01.7]} 1... d5 {[%clk 0:02:59.9]} 2. e3 {[%clk 0:03:02]} 2...
c5 {[%clk 0:02:54.6]} 3. Bb5+ {[%clk 0:02:58.4]} 3... Nd7 {[%clk 0:02:50.1]} 4.
c4 {[%clk 0:02:57.4]} 4... e6 {[%clk 0:02:42.9]} 5. cxd5 {[%clk 0:02:57.8]} 5...
exd5 {[%clk 0:02:44]} 6. d4 {[%clk 0:02:59.6]} 6... c4 {[%clk 0:02:31.8]} 7. O-O
{[%clk 0:02:58.7]} 7... Nf6 {[%clk 0:02:32.1]} 8. Nc3 {[%clk 0:02:59.7]} 8... a6
{[%clk 0:02:32.4]} 9. Bxd7+ {[%clk 0:02:55.5]} 9... Bxd7 {[%clk 0:02:33.3]} 10.
e4 {[%clk 0:02:57.4]} 10... dxe4 {[%clk 0:02:29.7]} 11. Nd2 {[%clk 0:02:54.5]}
11... Bg4 {[%clk 0:02:00.4]} 12. Qc2 {[%clk 0:02:46.8]} 12... Qxd4 {[%clk
0:01:51.3]} 13. Re1 {[%clk 0:02:42.4]} 13... O-O-O {[%clk 0:01:04.7]} 14. Ndxe4
{[%clk 0:02:05.9]} 14... Qd3 {[%clk 0:00:52.3]} 15. Qa4 {[%clk 0:02:07.5]} 15...
Nxe4 {[%clk 0:00:44.4]} 16. Rxe4 {[%clk 0:02:00.4]} 16... Qxe4 {[%clk
0:00:32.5]} 17. Nxe4 {[%clk 0:02:02.3]} 17... Rd1+ {[%clk 0:00:34.1]} 18. Qxd1
{[%clk 0:02:04.2]} 18... Bxd1 {[%clk 0:00:36]} 19. Be3 {[%clk 0:01:09.5]} 19...
Bc2 {[%clk 0:00:35.9]} 20. Nd2 {[%clk 0:01:11.1]} 20... b5 {[%clk 0:00:31.6]}
21. b3 {[%clk 0:01:07.1]} 21... cxb3 {[%clk 0:00:27.4]} 22. Nxb3 {[%clk
0:01:02.5]} 22... Bxb3 {[%clk 0:00:27]} 23. axb3 {[%clk 0:01:03.8]} 23... Kb7
{[%clk 0:00:27.9]} 24. Rd1 {[%clk 0:01:05]} 24... Kc8 {[%clk 0:00:15.1]} 25. Ra1
{[%clk 0:01:01.1]} 25... Kb7 {[%clk 0:00:16.2]} 26. Rd1 {[%clk 0:01:02.9]} 26...
Kc6 {[%clk 0:00:12.2]} 27. Rd8 {[%clk 0:01:02.3]} 27... f6 {[%clk 0:00:11.6]}
28. Ra8 {[%clk 0:01:02.8]} 28... Kd5 {[%clk 0:00:12.6]} 29. Rxa6 {[%clk
0:00:56.4]} 29... Bc5 {[%clk 0:00:13.6]} 30. Bd2 {[%clk 0:00:52.3]} 30... Re8
{[%clk 0:00:14.1]} 31. Kf1 {[%clk 0:00:53.9]} 31... Re7 {[%clk 0:00:13.2]} 32.
Ra8 {[%clk 0:00:54]} 32... Rd7 {[%clk 0:00:12.8]} 33. Ke2 {[%clk 0:00:53.7]}
33... Bb6 {[%clk 0:00:12.8]} 34. Rb8 {[%clk 0:00:48.1]} 34... Kc6 {[%clk
0:00:14.1]} 35. f3 {[%clk 0:00:42.6]} 35... Re7+ {[%clk 0:00:13]} 36. Kd3 {[%clk
0:00:40.1]} 36... Bc7 {[%clk 0:00:14.2]} 37. Rc8 {[%clk 0:00:34.2]} 37... Rd7+
{[%clk 0:00:13.3]} 38. Kc2 {[%clk 0:00:35]} 38... Kb7 {[%clk 0:00:13.7]} 39. Rh8
{[%clk 0:00:36.2]} 39... h6 {[%clk 0:00:14.5]} 40. h3 {[%clk 0:00:37.7]} 40...
Kc6 {[%clk 0:00:14.7]} 41. Rc8 {[%clk 0:00:36.6]} 41... Re7 {[%clk 0:00:15.2]}
42. Bf4 {[%clk 0:00:36.2]} 42... Kb7 {[%clk 0:00:16.5]} 43. Rxc7+ {[%clk
0:00:36.6]} 43... Rxc7+ {[%clk 0:00:18.4]} 44. Bxc7 {[%clk 0:00:38.5]} 44...
Kxc7 {[%clk 0:00:20.3]} 45. Kc3 {[%clk 0:00:39.2]} 45... Kd6 {[%clk 0:00:21.4]}
46. Kd4 {[%clk 0:00:23.2]} 46... h5 {[%clk 0:00:22.3]} 47. h4 {[%clk 0:00:23.5]}
47... g5 {[%clk 0:00:22.1]} 48. g3 {[%clk 0:00:23.5]} 48... gxh4 {[%clk
0:00:06.7]} 49. gxh4 {[%clk 0:00:22.9]} 49... Kc6 {[%clk 0:00:08]} 50. b4 {[%clk
0:00:07.6]} 50... Kd6 {[%clk 0:00:09]} 51. Ke4 {[%clk 0:00:06.7]} 51... Ke6
{[%clk 0:00:10]} 52. Kd4 {[%clk 0:00:06.5]} 52... Kd6 {[%clk 0:00:08.6]} 53. Ke4
{[%clk 0:00:08.1]} 53... Ke6 {[%clk 0:00:08.5]} 54. Kd4 {[%clk 0:00:03.5]} 54...
Kd6 {[%clk 0:00:09.5]} 1/2-1/2

[Event "*** Titled Tuesday Blitz"]
[Site "Chess.com"]
[Date "2019.10.01"]
[Round "3"]
[White "adriangschnitzer"]
[Black "KhalilMousavi77"]
[Result "1/2-1/2"]
[WhiteElo "2527"]
[BlackElo "2812"]
[TimeControl "180+2"]
[EndTime "13:39:40 PDT"]
[Termination "Game drawn by agreement"]

1. e4 {[%clk 0:03:01.9]} 1... c5 {[%clk 0:02:59.4]} 2. Nf3 {[%clk 0:03:02.3]}
2... e6 {[%clk 0:03:00.8]} 3. d4 {[%clk 0:03:03.2]} 3... cxd4 {[%clk 0:03:02.7]}
4. Nxd4 {[%clk 0:03:04.9]} 4... Nf6 {[%clk 0:03:04.6]} 5. Nc3 {[%clk 0:03:05.8]}
5... Nc6 {[%clk 0:03:06.4]} 6. Nxc6 {[%clk 0:03:05.7]} 6... bxc6 {[%clk
0:03:07.6]} 7. e5 {[%clk 0:03:06.9]} 7... Nd5 {[%clk 0:03:09.2]} 8. Ne4 {[%clk
0:03:07.7]} 8... Qc7 {[%clk 0:03:10.8]} 9. f4 {[%clk 0:03:07]} 9... Qb6 {[%clk
0:03:10.9]} 10. c4 {[%clk 0:03:06.8]} 10... Bb4+ {[%clk 0:03:11.1]} 11. Ke2
{[%clk 0:03:08.2]} 11... f5 {[%clk 0:03:06.4]} 12. exf6 {[%clk 0:03:08.5]} 12...
Nxf6 {[%clk 0:03:07.3]} 13. Nd6+ {[%clk 0:03:01.4]} 13... Ke7 {[%clk 0:02:48.7]}
14. Be3 {[%clk 0:02:52.3]} 14... Bc5 {[%clk 0:02:47.9]} 15. Bxc5 {[%clk
0:02:35.3]} 15... Qxc5 {[%clk 0:02:49.8]} 16. Nxc8+ {[%clk 0:02:31.6]} 16...
Raxc8 {[%clk 0:02:51.7]} 17. Qd3 {[%clk 0:02:20.6]} 17... e5 {[%clk 0:02:33.6]}
18. fxe5 {[%clk 0:02:14.8]} 18... Ng4 {[%clk 0:02:34.4]} 19. Qd6+ {[%clk
0:02:01.5]} 19... Qxd6 {[%clk 0:02:35]} 20. exd6+ {[%clk 0:02:03.4]} 20... Kxd6
{[%clk 0:02:36.9]} 21. Kd2 {[%clk 0:01:40.9]} 21... Rhf8 {[%clk 0:02:31.5]} 22.
Bd3 {[%clk 0:01:20.1]} 22... Rf2+ {[%clk 0:02:28.9]} 23. Kc3 {[%clk 0:01:20.2]}
23... Rxg2 {[%clk 0:02:26.3]} 24. Rag1 {[%clk 0:01:03.9]} 24... Ne3 {[%clk
0:01:50.8]} 25. Rxg2 {[%clk 0:00:56.6]} 25... Nxg2 {[%clk 0:01:52.7]} 26. Rg1
{[%clk 0:00:57.8]} 26... Nf4 {[%clk 0:01:54.4]} 27. Rxg7 {[%clk 0:00:55.1]}
27... Re8 {[%clk 0:01:51.9]} 28. Rf7 {[%clk 0:00:43.1]} 28... Ne6 {[%clk
0:01:07.3]} 29. Rxh7 {[%clk 0:00:39.1]} 29... Rf8 {[%clk 0:01:08]} 30. b4 {[%clk
0:00:28.5]} 30... Rf3 {[%clk 0:01:07.5]} 31. c5+ {[%clk 0:00:24.6]} 31... Kc7
{[%clk 0:01:08]} 32. Kc4 {[%clk 0:00:20.1]} 32... Rf2 {[%clk 0:00:54.5]} 33. a4
{[%clk 0:00:17.5]} 33... Ng5 {[%clk 0:00:55.6]} 34. Rg7 {[%clk 0:00:11.1]} 34...
Nf3 {[%clk 0:00:52.7]} 35. Kc3 {[%clk 0:00:09.1]} 35... Ne5 {[%clk 0:00:49.7]}
36. Rg3 {[%clk 0:00:02.9]} 36... Rxh2 {[%clk 0:00:49.7]} 37. Re3 {[%clk
0:00:04.4]} 37... Ng4 {[%clk 0:00:46.5]} 38. Rg3 {[%clk 0:00:04.8]} 38... Nf6
{[%clk 0:00:46.3]} 39. Rf3 {[%clk 0:00:04]} 39... Nd5+ {[%clk 0:00:47.1]} 40.
Kb3 {[%clk 0:00:04.5]} 40... Rh5 {[%clk 0:00:35.3]} 41. Ba6 {[%clk 0:00:03.9]}
41... Rh4 {[%clk 0:00:31]} 42. Bc4 {[%clk 0:00:04.3]} 42... Ne7 {[%clk
0:00:29.9]} 43. Rf8 {[%clk 0:00:04.9]} 43... Rh3+ {[%clk 0:00:29.5]} 44. Kb2
{[%clk 0:00:05.7]} 44... Re3 {[%clk 0:00:27.8]} 45. Ba6 {[%clk 0:00:05.7]} 45...
Re4 {[%clk 0:00:22.9]} 46. Kb3 {[%clk 0:00:06.3]} 46... d6 {[%clk 0:00:21.5]}
47. Ra8 {[%clk 0:00:04.6]} 47... dxc5 {[%clk 0:00:17.5]} 48. bxc5 {[%clk
0:00:06.5]} 48... Nd5 {[%clk 0:00:17.8]} 49. Rxa7+ {[%clk 0:00:07.4]} 49... Kb8
{[%clk 0:00:18.8]} 50. Rb7+ {[%clk 0:00:08.3]} 50... Ka8 {[%clk 0:00:20.4]} 51.
Rh7 {[%clk 0:00:07.9]} 51... Re3+ {[%clk 0:00:19.9]} 52. Kc4 {[%clk 0:00:07.6]}
52... Re4+ {[%clk 0:00:18.2]} 53. Kd3 {[%clk 0:00:06.5]} 53... Rb4 {[%clk
0:00:19.4]} 54. Bc4 {[%clk 0:00:06.2]} 54... Rxa4 {[%clk 0:00:08.8]} 55. Bxd5
{[%clk 0:00:06.2]} 55... cxd5 {[%clk 0:00:10.7]} 56. Rd7 {[%clk 0:00:06.9]}
56... Kb8 {[%clk 0:00:09.8]} 57. Rxd5 {[%clk 0:00:07.1]} 57... Kc7 {[%clk
0:00:11.3]} 58. Rd6 {[%clk 0:00:06.1]} 58... Rh4 {[%clk 0:00:12.5]} 59. Rg6
{[%clk 0:00:06.3]} 59... Ra4 {[%clk 0:00:13.7]} 60. Kc3 {[%clk 0:00:07]} 60...
Rh4 {[%clk 0:00:13.5]} 1/2-1/2